bitfinex/quotes_SOLUSD_20240625
["timestamp","ask_amount","ask_price","bid_price","bid_amount"]
[1719340222027,7.2115,138.67,138.61,7.2141]
[1719340222248,20.0,138.66,138.61,8.78630205]
[1719340222629,20.0,138.66,138.61,7.2141]
[1719340222820,26.3558,138.66,138.61,7.2141]
[1719340223438,26.3558,138.66,138.62,18.0345]
[1719340223730,15.5463,138.68,138.65,7.2119]
[1719340223936,15.5463,138.68,138.65,7.2122]
[1719340223937,20.0,138.67,138.65,7.2122]
[1719340224125,15.5463,138.68,138.66,18.0294]
[1719340224329,4.23314022,138.71,138.67,7.2113]
[1719340224573,4.23314022,138.71,138.66,25.2412]
[1719340224871,11.44244022,138.71,138.65,7.2122]
[1719340225217,11.44244022,138.71,138.64,1.570499]
[1719340225218,11.44244022,138.71,138.64,8.783299]
[1719340225539,4.23314022,138.71,138.6,18.0371]
[1719340225743,7.2109,138.68,138.61,7.2143]
[1719340225960,20.0,138.67,138.62,7.2138]
[1719340226456,20.0,138.68,138.63,7.2134]
[1719340226752,27.2109,138.68,138.62,18.0347]
[1719340226925,20.0,138.68,138.62,18.0347]
[1719340227429,20.0,138.68,138.65,7.2123]
[1719340227622,20.0,138.7,138.65,7.2123]
[1719340227823,20.0,138.7,138.64,25.2449]
[1719340228222,7.2105,138.69,138.62,7.2136]
[1719340228424,20.0,138.68,138.62,8.65483353]
[1719340228620,20.0,138.68,138.64,7.2128]
[1719340228844,20.0,138.69,138.64,7.2128]
[1719340229260,27.2104,138.69,138.63,18.0333]
[1719340229556,7.2108,138.68,138.63,18.0333]
[1719340229730,20.0,138.67,138.63,18.0333]
[1719340229931,20.0,138.67,138.62,7.2137]
[1719340230246,20.0,138.67,138.61,7.2144]
[1719340230552,7.211,138.68,138.62,7.2138]
[1719340230765,20.0,138.7,138.63,7.2133]
[1719340230766,36.627,138.67,138.63,7.2133]
[1719340231433,36.627,138.67,138.65,7.2123]
[1719340232055,36.627,138.67,138.64,25.2447]
[1719340232227,15.1194,138.7,138.64,18.032]
[1719340232429,20.0,138.69,138.64,18.032]
[1719340232748,15.1194,138.7,138.64,18.032]
[1719340232948,15.1194,138.7,138.65,7.2122]
[1719340233152,15.1194,138.7,138.65,8.65465115]
[1719340233327,15.1194,138.7,138.62,7.2137]
[1719340233656,15.1194,138.7,138.61,25.2496]
[1719340234172,7.211,138.68,138.62,7.2139]
[1719340234328,20.0,138.67,138.62,7.2139]
[1719340234532,20.0,138.67,138.61,25.2497]
[1719340235650,6.4912,138.66,138.59,7.2153]
[1719340235860,20.0,138.65,138.59,7.2153]
[1719340236246,20.0,138.65,138.6,7.2148]
[1719340236647,20.0,138.65,138.59,7.2154]
[1719340237450,20.0,138.65,138.6,7.2148]
[1719340237662,20.0,138.65,138.58,18.0395]
[1719340237859,22.2598,138.64,138.58,18.0395]
[1719340238062,15.0465,138.64,138.58,18.0395]
[1719340238277,15.0465,138.64,138.59,7.2153]
[1719340238944,15.0465,138.64,138.6,18.0366]
[1719340239138,15.0465,138.64,138.62,7.2135]
[1719340239567,15.0465,138.64,138.61,7.2142]
[1719340239897,15.0465,138.64,138.6,18.0366]
[1719340240367,20.0,138.63,138.53,21.7083]
[1719340240674,27.2135,138.63,138.53,21.7083]
[1719340240867,27.2135,138.63,138.56,18.0424]
[1719340241075,27.2135,138.63,138.56,25.2591]
[1719340241253,20.0,138.63,138.58,7.216]
[1719340241458,20.0,138.63,138.57,7.2163]
[1719340241766,20.0,138.63,138.58,7.2159]
[1719340241967,20.0,138.63,138.58,18.0395]
[1719340242769,20.0,138.63,138.59,7.2154]
[1719340242970,15.0465,138.64,138.6,18.037]
[1719340243175,15.0465,138.64,138.62,25.2484]
[1719340243874,15.0465,138.64,138.61,7.2144]
[1719340244098,15.0465,138.64,138.59,25.253]
[1719340244252,15.0465,138.64,138.6,7.2149]
[1719340244581,15.0465,138.64,138.59,25.2531]
[1719340245581,15.0465,138.64,138.6,7.2149]
[1719340245782,15.0465,138.64,138.59,25.253]
[1719340246368,22.2599,138.64,138.57,7.2164]
[1719340246684,15.0465,138.64,138.53,21.7083]
[1719340246861,15.0465,138.64,138.59,7.2151]
[1719340247057,15.0465,138.64,138.6,7.2149]
[1719340247357,15.0465,138.64,138.58,18.0396]
[1719340247552,15.0465,138.64,138.59,7.2153]
[1719340249184,15.0465,138.64,138.58,25.2556]
[1719340249389,20.0,138.63,138.58,25.2556]
[1719340250082,20.0,138.63,138.59,7.2155]
[1719340250264,20.0,138.63,138.58,25.2555]
[1719340250784,20.0,138.63,138.57,7.2161]
[1719340250968,20.0,138.63,138.57,25.2574]
[1719340251164,20.0,138.63,138.58,7.2159]
[1719340251379,20.0,138.63,138.6,7.2146]
[1719340251565,20.0,138.63,138.61,7.2144]
[1719340252770,20.0,138.63,138.61,18.0361]
[1719340253088,20.0,138.63,138.53,21.7083]
[1719340253386,15.0465,138.64,138.62,18.0339]
[1719340254265,15.0465,138.64,138.6,7.2148]
[1719340254487,15.0465,138.64,138.56,18.0415]
[1719340254690,15.0465,138.64,138.58,7.2155]
[1719340254691,20.0,138.63,138.58,7.2155]
[1719340255077,20.0,138.63,138.6,7.2148]
[1719340256293,20.0,138.63,138.59,7.2154]
[1719340259293,20.0,138.63,138.6,7.2148]
[1719340260285,20.0,138.63,138.59,7.2153]
[1719340260613,20.0,138.63,138.62,7.2139]
[1719340260784,20.0,138.63,138.61,7.2141]
[1719340260992,20.0,138.63,138.6,18.0372]
[1719340261185,20.0,138.63,138.6,25.252]
[1719340261507,20.0,138.63,138.6,18.0372]
[1719340261715,20.0,138.63,138.59,7.2153]
[1719340262007,20.0,138.63,138.57,18.0405]
[1719340262210,6.116,138.6,138.54,18.0447]
[1719340262507,20.0,138.59,138.54,25.2627]
[1719340262821,20.0,138.59,138.55,7.2174]
[1719340263399,20.0,138.59,138.56,7.217]
[1719340263986,20.0,138.59,138.55,7.2174]
[1719340265716,20.0,138.59,138.54,18.0447]
[1719340266007,20.0,138.59,138.54,25.2627]
[1719340266818,20.0,138.59,138.54,18.0447]
[1719340267589,20.0,138.59,138.54,25.2627]
[1719340270219,15.0055,138.58,138.52,7.219]
[1719340270424,20.0,138.57,138.52,7.219]
[1719340270920,20.0,138.57,138.53,7.2185]
[1719340272221,15.0055,138.58,138.51,1.44083471]
[1719340272427,6.116,138.6,138.57,7.2165]
[1719340272627,20.0,138.59,138.58,7.2159]
[1719340272816,20.0,138.59,138.57,25.2574]
[1719340273122,23.86952064,138.62,138.58,7.2159]
[1719340273297,16.3241,138.62,138.58,7.2159]
[1719340273495,20.0,138.61,138.57,25.2574]
[1719340273916,20.0,138.61,138.56,7.2169]
[1719340274129,20.0,138.61,138.55,7.2174]
[1719340274511,27.2146,138.61,138.55,7.2174]
[1719340274823,20.0,138.61,138.55,7.2174]
[1719340275027,20.0,138.61,138.54,18.0446]
[1719340275345,7.2153,138.6,138.54,25.2627]
[1719340275528,27.2155,138.59,138.54,18.0446]
[1719340275740,20.0,138.59,138.54,18.0446]
[1719340275927,27.2155,138.59,138.54,18.0446]
[1719340276128,6.6001,138.58,138.54,18.0446]
[1719340277346,6.6001,138.58,138.49,6.5061]
[1719340277549,6.6001,138.58,138.48,15.729]
[1719340277550,20.0,138.57,138.48,15.729]
[1719340277719,20.0,138.57,138.52,25.2666]
[1719340279438,15.8973,138.56,138.52,25.2666]
[1719340280646,15.8973,138.56,138.54,18.0451]
[1719340280856,6.6001,138.58,138.54,18.0451]
[1719340281045,16.497,138.59,138.57,7.2161]
[1719340281224,6.3089,138.62,138.59,7.2152]
[1719340281559,6.3089,138.62,138.6,7.2149]
[1719340281712,16.497,138.63,138.6,7.2149]
[1719340283048,22.8059,138.68,138.55,25.0]
[1719340283246,22.8059,138.68,138.64,18.0319]
[1719340283419,16.497,138.68,138.64,18.0319]
[1719340283760,16.497,138.68,138.67,7.2113]
[1719340283914,26.09304022,138.71,138.67,7.2113]
[1719340284121,4.23314022,138.71,138.66,18.0286]
[1719340284318,4.23314022,138.71,138.68,18.0261]
[1719340285314,4.23314022,138.71,138.67,7.2112]
[1719340285843,4.23314022,138.71,138.65,18.0306]
[1719340286344,4.23314022,138.71,138.66,7.2118]
[1719340286720,4.23314022,138.71,138.65,18.0306]
[1719340286932,4.23314022,138.71,138.65,25.2429]
[1719340287334,4.23314022,138.71,138.63,7.2129]
[1719340287535,11.44254022,138.71,138.63,7.2129]
[1719340287750,20.0,138.7,138.64,7.2127]
[1719340288328,31.44284022,138.71,138.63,7.2134]
[1719340288522,31.44284022,138.71,138.62,18.0345]
[1719340288523,7.2103,138.69,138.62,18.0345]
[1719340288754,16.1258,138.67,138.59,18.0382]
[1719340288957,27.2123,138.66,138.59,18.0382]
[1719340289141,7.2124,138.65,138.59,18.0382]
[1719340289326,20.0,138.64,138.59,18.0382]
[1719340289532,20.0,138.64,138.58,7.2159]
[1719340289764,20.0,138.64,138.57,7.2164]
[1719340290066,20.0,138.64,138.56,25.2591]
[1719340290236,26.3383,138.66,138.56,25.2591]
[1719340290436,7.2141,138.62,138.56,18.0421]
[1719340290638,7.2141,138.62,138.55,7.2175]
[1719340290639,20.0,138.61,138.55,7.2175]
[1719340290845,6.3383,138.59,138.52,7.2187]
[1719340291251,20.0,138.58,138.52,7.2187]
[1719340292157,20.0,138.58,138.5,18.0499]
[1719340292850,20.0,138.58,138.5,25.2697]
[1719340293157,27.2161,138.58,138.51,7.2194]
[1719340293355,7.2166,138.57,138.5,18.0499]
[1719340293560,20.0,138.56,138.5,18.0499]
[1719340294162,20.0,138.56,138.5,25.2697]
[1719340294357,20.0,138.56,138.5,18.0499]
[1719340294656,20.0,138.57,138.5,18.0499]
[1719340295236,20.0,138.58,138.5,18.0499]
[1719340295456,27.2162,138.58,138.51,7.2195]
[1719340295775,27.2162,138.58,138.5,25.2699]
[1719340295931,27.2162,138.58,138.51,7.2196]
[1719340296132,20.0,138.58,138.52,18.0471]
[1719340296641,20.0,138.58,138.52,25.2658]
[1719340296840,20.0,138.58,138.54,7.218]
[1719340297034,20.0,138.58,138.54,7.2179]
[1719340297235,20.0,138.58,138.55,7.2173]
[1719340297728,20.0,138.58,138.54,25.2627]
[1719340298047,6.3383,138.59,138.54,18.0447]
[1719340298251,15.0326,138.6,138.56,18.0417]
[1719340298448,15.0326,138.6,138.57,7.2161]
[1719340298644,15.0326,138.6,138.56,18.0417]
[1719340298851,15.0326,138.6,138.54,7.2176]
[1719340300439,20.0,138.59,138.5,18.0499]
[1719340300656,7.2171,138.56,138.5,18.0499]
[1719340300854,20.0,138.55,138.5,18.0499]
[1719340301034,20.0,138.59,138.5,18.0499]
[1719340301351,20.0,138.59,138.53,7.2185]
[1719340301964,7.2164,138.58,138.52,18.0475]
[1719340302167,20.0,138.57,138.52,18.0475]
[1719340302336,20.0,138.57,138.52,25.2666]
[1719340302541,20.0,138.57,138.52,18.0475]
[1719340302755,27.2165,138.57,138.51,7.2195]
[1719340303070,20.0,138.57,138.49,18.0512]
[1719340303364,6.5394,138.56,138.49,18.0512]
[1719340303542,21.572,138.6,138.54,7.218]
[1719340303745,21.572,138.6,138.46,6.4418]
[1719340303746,28.787,138.6,138.53,25.2644]
[1719340304567,21.572,138.6,138.53,25.2644]
[1719340304771,28.7873,138.6,138.53,25.2644]
[1719340305569,20.0,138.59,138.53,25.2644]
[1719340306168,20.0,138.59,138.54,7.218]
[1719340306372,27.2155,138.59,138.53,18.0459]
[1719340307376,20.0,138.59,138.53,25.2645]
[1719340307668,27.2155,138.59,138.53,18.0459]
[1719340308282,20.0,138.59,138.53,18.0459]
[1719340308456,20.0,138.59,138.54,7.2181]
[1719340309575,20.0,138.59,138.55,18.0433]
[1719340309856,20.0,138.59,138.56,7.2169]
[1719340310060,20.0,138.59,138.55,25.2608]
[1719340311076,21.572,138.6,138.58,7.216]
[1719340312183,21.572,138.6,138.57,25.2574]
[1719340313159,21.572,138.6,138.54,18.0443]
[1719340313358,21.572,138.6,138.55,7.2174]
[1719340313581,21.572,138.6,138.54,18.0443]
[1719340313780,21.572,138.6,138.54,25.2619]
[1719340313993,21.572,138.6,138.55,7.2174]
[1719340314596,21.572,138.6,138.56,7.217]
[1719340314891,21.572,138.6,138.55,7.2175]
[1719340315593,21.572,138.6,138.54,25.2623]
[1719340315769,20.0,138.59,138.54,25.2623]
[1719340315960,20.0,138.59,138.46,6.4418]
[1719340315961,20.0,138.59,138.51,18.0482]
[1719340316170,20.0,138.59,138.52,7.2191]
[1719340316468,27.2158,138.59,138.52,7.2191]
[1719340316666,27.2158,138.59,138.53,7.2186]
[1719340316986,20.0,138.59,138.54,7.218]
[1719340317370,20.0,138.59,138.53,25.2648]
[1719340318358,20.0,138.59,138.5,18.0497]
[1719340318563,7.2161,138.58,138.51,7.2193]
[1719340318863,7.2161,138.58,138.5,18.0497]
[1719340318864,20.0,138.57,138.52,7.2191]
[1719340319073,27.2157,138.59,138.52,7.2191]
[1719340319278,7.216,138.58,138.52,7.2191]
[1719340319475,20.0,138.57,138.52,7.2191]
[1719340319691,20.0,138.57,138.46,6.4418]
[1719340319867,20.0,138.57,138.52,18.0474]
[1719340320070,20.0,138.57,138.53,7.2182]
[1719340320280,27.2156,138.59,138.52,18.0474]
[1719340320688,7.216,138.58,138.52,25.2663]
[1719340320873,20.0,138.57,138.49,25.2715]
[1719340321195,7.2174,138.56,138.49,25.2715]
[1719340321393,20.0,138.55,138.49,25.2715]
[1719340321578,22.1798,138.54,138.49,25.2714]
[1719340321773,20.0,138.53,138.49,18.0509]
[1719340321969,20.0,138.53,138.49,25.2714]
[1719340322462,22.1798,138.54,138.43,7.247]
[1719340322669,15.5494,138.54,138.52,7.219]
[1719340322891,15.5494,138.54,138.48,18.0521]
[1719340323086,20.0,138.53,138.49,7.2205]
[1719340323396,20.0,138.53,138.5,7.2201]
[1719340324190,20.0,138.53,138.51,7.2196]
[1719340324664,20.0,138.53,138.5,25.2703]
[1719340325175,20.0,138.53,138.51,7.2195]
[1719340325381,20.0,138.53,138.5,18.0503]
[1719340325890,20.0,138.53,138.5,25.2704]
[1719340326385,20.0,138.53,138.48,7.221]
[1719340326781,20.0,138.53,138.47,18.0537]
[1719340327086,20.0,138.53,138.47,25.275]
[1719340327291,20.0,138.53,138.47,18.0537]
[1719340327487,20.0,138.53,138.47,25.2752]
[1719340327684,20.0,138.53,138.48,7.221]
[1719340327996,20.0,138.53,138.49,18.0516]
[1719340328380,20.0,138.53,138.5,7.2198]
[1719340328571,20.0,138.53,138.49,25.2722]
[1719340328979,20.0,138.53,138.43,7.247]
[1719340329201,27.2191,138.53,138.46,18.0547]
[1719340329368,27.2191,138.53,138.47,7.2216]
[1719340329570,7.2192,138.52,138.46,25.2767]
[1719340329768,33.4309,138.51,138.45,7.247]
[1719340330031,13.4309,138.51,138.45,7.247]
[1719340330200,20.0,138.5,138.45,7.247]
[1719340330371,27.2202,138.5,138.45,7.247]
[1719340330678,7.2215,138.48,138.45,7.247]
[1719340330992,20.0,138.47,138.45,7.247]
[1719340331894,20.0,138.47,138.4,7.247]
[1719340331895,7.2228,138.45,138.4,7.247]
[1719340332096,21.05,138.44,138.4,7.247]
[1719340332273,20.0,138.43,138.38,7.2262]
[1719340332694,20.0,138.43,138.39,7.2258]
[1719340332877,27.2228,138.45,138.39,7.2258]
[1719340333276,27.2228,138.45,138.38,7.2263]
[1719340333607,27.2228,138.45,138.37,18.0672]
[1719340333608,20.0,138.45,138.39,7.2258]
[1719340334287,20.0,138.45,138.39,18.0645]
[1719340334484,20.0,138.45,138.42,7.2243]
[1719340335700,20.0,138.45,138.41,18.0619]
[1719340336296,20.0,138.45,138.38,18.0651]
[1719340336477,20.0,138.45,138.4,7.2254]
[1719340336795,20.0,138.45,138.39,7.2257]
[1719340337534,27.223,138.45,138.38,25.2915]
[1719340337710,27.223,138.45,138.39,7.2258]
[1719340337873,20.0,138.45,138.4,7.2252]
[1719340338189,20.0,138.45,138.39,7.2257]
[1719340339405,20.0,138.45,138.42,7.2242]
[1719340339584,20.0,138.45,138.4,18.0625]
[1719340339777,20.0,138.45,138.41,7.2247]
[1719340339976,20.0,138.45,138.42,7.2243]
[1719340340496,20.0,138.45,138.4,25.2877]
[1719340340688,20.0,138.45,138.37,18.0665]
[1719340340689,27.2229,138.45,138.37,18.0665]
[1719340340889,20.0,138.45,138.39,7.2258]
[1719340341076,20.0,138.45,138.4,7.2249]
[1719340341782,20.0,138.45,138.39,18.0646]
[1719340342005,27.2231,138.45,138.39,18.0646]
[1719340342209,20.0,138.45,138.39,25.2904]
[1719340342384,20.0,138.45,138.4,7.2254]
[1719340343389,20.0,138.45,138.39,25.2903]
[1719340344785,7.2236,138.44,138.36,18.0682]
[1719340344986,35.7539,138.43,138.36,18.0682]
[1719340345412,42.9782,138.43,138.36,18.0682]
[1719340345709,42.9782,138.43,138.36,25.2955]
[1719340346000,42.9779,138.43,138.36,25.2955]
[1719340346381,42.9779,138.43,138.37,7.2269]
[1719340346585,35.7539,138.43,138.36,18.0682]
[1719340346803,35.7539,138.43,138.37,7.2266]
[1719340346981,7.2245,138.42,138.36,25.2955]
[1719340347181,20.0,138.41,138.36,25.2955]
[1719340347778,20.0,138.41,138.31,6.6411]
[1719340347779,20.0,138.42,138.33,18.0716]
[1719340347987,7.2258,138.4,138.33,25.3006]
[1719340348176,20.0,138.39,138.33,25.3006]
[1719340348583,20.0,138.39,138.34,7.2285]
[1719340349408,20.0,138.39,138.33,25.3006]
[1719340349908,15.7539,138.38,138.31,7.2296]
[1719340350112,20.0,138.37,138.31,7.2296]
[1719340350612,7.2276,138.36,138.3,25.3062]
[1719340350786,26.1883,138.35,138.3,25.3062]
[1719340350983,7.2292,138.33,138.26,25.3132]
[1719340351408,20.0,138.32,138.26,25.3132]
[1719340352406,20.0,138.32,138.27,7.2322]
[1719340352609,20.0,138.33,138.27,7.2322]
[1719340353211,20.0,138.33,138.27,7.2321]
[1719340353785,20.0,138.33,138.28,7.2314]
[1719340354022,20.0,138.33,138.29,7.2311]
[1719340354585,20.0,138.33,138.28,25.3096]
[1719340355630,13.71114005,138.35,138.3,18.0761]
[1719340355929,6.1883,138.35,138.32,7.2294]
[1719340357095,6.1883,138.35,138.31,7.23]
[1719340357295,20.0,138.34,138.31,7.23]
[1719340357510,20.0,138.34,138.32,7.2295]
[1719340357725,6.0664,138.39,138.38,7.2264]
[1719340357894,16.321,138.41,138.37,18.0664]
[1719340358098,16.321,138.41,138.38,7.2264]
[1719340358308,16.321,138.41,138.39,7.2259]
[1719340358503,16.321,138.41,138.38,7.2263]
[1719340358700,16.321,138.41,138.37,18.0664]
[1719340359201,16.321,138.41,138.35,7.2279]
[1719340359402,16.321,138.41,138.36,7.2274]
[1719340360105,16.321,138.41,138.37,7.2268]
[1719340360510,20.0,138.4,138.37,7.2268]
[1719340360717,20.0,138.4,138.38,7.2264]
[1719340361229,20.0,138.4,138.37,7.2268]
[1719340361395,20.0,138.4,138.36,18.0684]
[1719340361595,6.0664,138.42,138.39,7.2255]
[1719340361794,20.0,138.41,138.38,25.2919]
[1719340362420,23.28546923,138.45,138.4,7.2254]
[1719340362625,20.0,138.44,138.4,7.2254]
[1719340363798,20.0,138.44,138.39,7.2258]
[1719340365794,20.0,138.44,138.4,7.2253]
[1719340366615,20.0,138.44,138.4,25.2884]
[1719340366923,20.0,138.44,138.4,18.0631]
[1719340367127,20.0,138.44,138.35,1.41503344]
[1719340367434,20.0,138.44,138.43,7.2238]
[1719340367601,21.5759,138.49,138.43,7.2238]
[1719340367806,7.2219,138.47,138.4,7.2253]
[1719340368003,7.2219,138.47,138.39,18.0641]
[1719340368219,7.2212,138.48,138.41,7.2248]
[1719340368931,20.0,138.47,138.42,7.2242]
[1719340369133,20.0,138.48,138.42,7.2242]
[1719340369627,20.0,138.48,138.39,6.3814]
[1719340369811,20.0,138.48,138.4,0.34]
[1719340370128,20.0,138.48,138.45,25.2789]
[1719340370914,20.0,138.48,138.46,7.2222]
[1719340371112,13.60973517,138.52,138.47,7.2213]
[1719340371404,6.0829,138.52,138.47,7.2213]
[1719340371719,27.1429,138.52,138.4,0.34]
[1719340371905,27.1429,138.52,138.42,7.2243]
[1719340371906,7.2208,138.49,138.42,7.2243]
[1719340372102,27.1429,138.52,138.4,0.17]
[1719340372301,22.7117,138.53,138.46,7.2218]
[1719340372634,15.493,138.53,138.45,18.056]
[1719340372803,15.493,138.53,138.48,7.2211]
[1719340373205,15.493,138.53,138.47,18.054]
[1719340373410,22.7118,138.53,138.47,18.054]
[1719340373635,20.0,138.52,138.47,25.2757]
[1719340374005,27.2191,138.52,138.45,7.2227]
[1719340374922,20.0,138.52,138.47,7.2217]
[1719340376137,20.0,138.52,138.43,18.0588]
[1719340376304,6.4424,138.5,138.44,7.2232]
[1719340376820,6.4424,138.5,138.43,18.0588]
[1719340376821,20.0,138.49,138.43,18.0588]
[1719340377009,20.0,138.49,138.43,25.2825]
[1719340377611,27.2207,138.49,138.43,25.2825]
[1719340377836,27.2207,138.49,138.36,6.5839]
[1719340377837,15.8695,138.47,138.4,18.0629]
[1719340378022,20.0,138.46,138.4,18.0629]
[1719340378217,20.0,138.46,138.4,25.2883]
[1719340378712,20.0,138.46,138.41,7.2248]
[1719340380453,20.0,138.46,138.4,25.2881]
[1719340380811,20.0,138.46,138.37,18.0674]
[1719340380812,51.0541,138.45,138.37,18.0674]
[1719340381042,51.0541,138.45,138.35,7.2279]
[1719340381043,7.2244,138.42,138.35,7.2279]
[1719340381255,20.0,138.41,138.35,7.2279]
[1719340381538,20.0,138.41,138.36,2.45569578]
[1719340381739,20.0,138.41,138.4,7.2254]
[1719340382240,6.0541,138.45,138.41,7.2245]
[1719340382455,20.0,138.44,138.4,25.2878]
[1719340382623,20.0,138.44,138.38,7.2264]
[1719340383124,20.0,138.44,138.39,7.2259]
[1719340383645,20.0,138.44,138.4,7.2253]
[1719340383849,20.0,138.44,138.41,7.2246]
[1719340384323,20.0,138.44,138.39,18.0644]
[1719340384324,20.0,138.44,138.39,25.2898]
[1719340384742,20.0,138.44,138.4,7.2253]
[1719340385317,20.0,138.44,138.41,7.2247]
[1719340385754,20.0,138.44,138.4,7.2252]
[1719340385944,20.0,138.44,138.41,18.0619]
[1719340386438,20.0,138.46,138.41,18.0619]
[1719340387044,20.0,138.46,138.43,18.0589]
[1719340387240,6.2808,138.49,138.43,18.0589]
[1719340387241,20.0,138.48,138.43,18.0589]
[1719340387945,27.2217,138.48,138.41,7.2245]
[1719340388125,7.2221,138.47,138.4,25.2879]
[1719340388331,20.0,138.48,138.36,2.4531874]
[1719340388332,27.2227,138.46,138.39,7.2259]
[1719340389051,27.2227,138.46,138.4,7.2253]
[1719340389221,7.2228,138.45,138.39,18.0645]
[1719340389419,20.0,138.44,138.39,18.0645]
[1719340389634,16.1426,138.43,138.38,7.2262]
[1719340389835,16.1426,138.43,138.36,20.63052609]
[1719340389836,20.0,138.42,138.36,20.63052609]
[1719340390068,20.0,138.42,138.37,7.2265]
[1719340390847,20.0,138.42,138.38,7.2264]
[1719340391150,20.0,138.42,138.39,2.56171494]
[1719340391340,20.0,138.42,138.41,7.2249]
[1719340391734,20.0,138.42,138.33,2.56171494]
[1719340391941,20.0,138.42,138.38,7.226]
[1719340392249,20.0,138.42,138.38,7.2262]
[1719340392949,20.0,138.42,138.39,7.2258]
[1719340393258,20.0,138.42,138.4,7.2253]
[1719340394119,20.0,138.42,138.41,7.2249]
[1719340394318,23.66806267,138.46,138.41,7.2249]
[1719340394522,20.0,138.45,138.4,7.2252]
[1719340394950,20.0,138.45,138.39,25.2903]
[1719340395158,20.0,138.45,138.4,7.2254]
[1719340396132,7.2243,138.43,138.36,18.0678]
[1719340396324,33.5584,138.42,138.35,7.2279]
[1719340396836,26.3337,138.42,138.37,7.2269]
[1719340397045,26.3337,138.42,138.36,7.2274]
[1719340397592,33.5581,138.42,138.36,7.2274]
[1719340397940,33.5581,138.42,138.35,18.0699]
[1719340397941,33.5581,138.42,138.35,25.2977]
[1719340398660,26.3337,138.42,138.36,7.2274]
[1719340398843,33.5581,138.42,138.35,25.2977]
[1719340399153,23.693,138.41,138.32,18.0729]
[1719340399322,72.2254,138.4,138.34,7.2285]
[1719340399523,72.2254,138.4,138.33,7.2288]
[1719340399727,65.0,138.4,138.34,7.2284]
[1719340399939,65.0,138.4,138.34,25.2997]
[1719340400140,65.0,138.4,138.35,7.228]
[1719340401355,7.226,138.39,138.32,7.2294]
[1719340401558,27.2266,138.38,138.31,18.0744]
[1719340401774,7.2261,138.39,138.32,7.2294]
[1719340402056,20.0,138.38,138.32,7.2294]
[1719340402636,20.0,138.38,138.33,7.2288]
[1719340402942,20.0,138.39,138.34,7.2284]
[1719340403260,20.0,138.39,138.35,7.2279]
[1719340403828,20.0,138.39,138.33,18.0724]
[1719340404033,20.0,138.39,138.33,25.3012]
[1719340404661,20.0,138.39,138.35,18.069]
[1719340404869,20.0,138.4,138.37,7.2267]
[1719340405036,20.0,138.4,138.37,25.2939]
[1719340405231,20.0,138.4,138.39,7.2259]
[1719340405536,6.3337,138.42,138.4,7.2253]
[1719340405766,6.3337,138.42,138.39,25.2902]
[1719340406269,6.3337,138.42,138.37,7.2265]
[1719340406560,6.3337,138.42,138.36,25.2953]